[Event "56th Ilmar Raud Memorial 2022"]
[Site "Viljandi"]
[Date "2022.07.08"]
[Round "7.2"]
[White "Kulaots, Kaido"]
[Black "Medar, Marti"]
[Result "1-0"]
[ECO "B07"]
[WhiteElo "2543"]
[BlackElo "2066"]
[Annotator "TA"]
[PlyCount "79"]
[EventDate "2022.07.05"]
[EventType "swiss"]
[EventCountry "EST"]
[SourceTitle "playchess.com"]
[Source "ChessBase"]
[SourceQuality "1"]
[TimeControl "40/5400+30:900+30"]

{[%evp 9,79,27,37,28,43,18,23,18,54,9,5,5,22,-28,22,33,77,68,70,68,113,129,137,120,115,115,118,82,74,71,114,79,118,54,105,108,95,81,120,112,116,114,156,135,144,143,131,131,146,138,290,291,267,282,290,291,365,372,353,309,322,333,712,512,635,615,897,808,805,618,29985,29986]} 1. e4 {[%emt 0:00:06]} d6 {[%emt 0:00:15]} 2. d4 {[%emt 0:00:25]} Nf6 {[%emt 0:00:11]} 3. Nc3 {[%emt 0:03:19]} Nbd7 {[%emt 0:00:11]} 4. g4 {[%emt 0:03:19]} h6 {[%emt 0:05:22]} 5. h3 {[%emt 0:06:57]} e5 {[%emt 0:01:55]} 6. Nge2 {[%emt 0:00:29] B07: Pirc Defence: Miscellaneous Systems.} c6 {[%emt 0:03:56]} 7. Bg2 {[%emt 0:01:47]} Be7 {[%emt 0:08:55] is the legacy move (7...b5).} 8. Ng3 {[%emt 0:06:38] White has an edge.} Nf8 {[%emt 0:01:52]} 9. Nf5 {[%emt 0:01:27]} Bxf5 {[%emt 0:00:09]} 10. exf5 {[%emt 0:00:27]} N8d7 {[%emt 0:04:24] [#]} 11. Be3 $146 {[%emt 0:02:29]} ({White should try} 11. dxe5 dxe5 12. O-O) ({Predecessor:} 11. dxe5 dxe5 12. Qe2 Bb4 13. Bd2 Qe7 14. a3 Bxc3 15. Bxc3 Nd5 16. Bxd5 cxd5 17. O-O-O d4 18. Bb4 Qg5+ 19. Kb1 Nb6 20. Qxe5+ {1-0 (20) Guliyev,N (2549)-Manouck,T (2329) Paris 2011}) 11... Nb6 {[%emt 0:07:48]} (11... d5 $142) 12. Qe2 {[%emt 0:01:54]} Qc7 {[%emt 0:01:31]} 13. dxe5 {[%emt 0:08:42]} dxe5 {[%emt 0:00:19]} 14. O-O-O {[%emt 0:00:06]} Bb4 {[%emt 0:05:16] [#]} 15. Nb5 {[%emt 0:08:40][%mdl 512]} Qb8 {[%emt 0:00:54]} 16. a3 {[%emt 0:02:14]} Be7 {[%emt 0:00:23]} 17. Nc3 {[%emt 0:00:11] h4 is the strong threat.} Qc7 {[%emt 0:03:47]} 18. h4 {[%emt 0:04:34] Threatens to win with g5.} Nfd7 {[%emt 0:06:59]} 19. g5 {[%emt 0:00:56]} O-O-O {[%emt 0:01:08]} 20. Qh5 {[%emt 0:14:19][%csl LRf7,LRh6]} Rdf8 {[%emt 0:03:30]} 21. Qg4 {[%emt 0:00:46]} ({But not} 21. gxh6 $6 gxh6 22. Qe2 (22. Bxh6 Nf6 $17) 22... Kb8 $14) ({Better is} 21. f6 $16 gxf6 22. gxh6) 21... f6 {[%emt 0:05:18]} (21... Kb8 $14) 22. gxh6 $16 {[%emt 0:03:08]} gxh6 {[%emt 0:00:17]} 23. Qe2 {[%emt 0:00:33] 0x0.000863649c6fdp-1022s more active pieces. The black rooks are badly placed.} Rd8 {[%emt 0:06:48]} 24. Bf3 $36 {[%emt 0:01:03][%mdl 2048] Black is under strong pressure.} Kb8 {[%emt 0:02:29]} 25. Rhg1 {[%emt 0:03:19]} Bf8 {[%emt 0:03:46] Against Rg7} 26. Bh5 {[%emt 0:03:45]} Nc5 {[%emt 0:01:32]} 27. Rxd8+ {[%emt 0:02:56]} Qxd8 {[%emt 0:00:02]} 28. Rd1 {[%emt 0:00:36] Inhibits Qd7.} Qc7 {[%emt 0:02:18]} 29. Qg4 {[%emt 0:00:27]} Nc8 $2 {[%emt 0:06:28] Loses the game.} (29... Bd6 $16 {was necessary.} 30. Kb1 Qe7) 30. Qg6 $18 {[%emt 0:03:01]} Be7 {[%emt 0:13:11]} 31. Qg7 {[%emt 0:06:39]} Rd8 {[%emt 0:00:46]} 32. Qxh6 {[%emt 0:01:23]} ({Don't do} 32. Bxh6 $6 Nd6 $16) 32... b5 {[%emt 0:00:26]} 33. Rxd8 {[%emt 0:02:14]} Qxd8 {[%emt 0:00:09]} 34. Qg6 {[%emt 0:01:04]} a5 {[%emt 0:00:22]} 35. Qe8 {[%emt 0:00:59]} Qd6 {[%emt 0:00:20]} (35... Kc7 36. Qxd8+ Kxd8) 36. Bf3 {[%emt 0:05:16] A strong pair of Bishops.} Kc7 {[%emt 0:04:20]} 37. h5 {[%emt 0:00:40] [#] aiming for h6.} b4 {[%emt 0:00:41]} 38. axb4 {[%emt 0:00:13]} axb4 {[%emt 0:00:10]} 39. Ne4 {[%emt 0:00:36]} Qd5 {[%emt 0:00:40]} 40. Nxc5 {[%emt 0:00:00] Weighted Error Value: White=0.21 (precise) /Black=0.54} 1-0

[Event "56th Ilmar Raud Memorial 2022"]
[Site "Viljandi"]
[Date "2022.07.08"]
[Round "7.3"]
[White "Seeman, Tarvo"]
[Black "Maiorov, Nikita"]
[Result "1/2-1/2"]
[ECO "A13"]
[WhiteElo "2410"]
[BlackElo "2474"]
[Annotator "RC"]
[PlyCount "38"]
[EventDate "2022.07.05"]
[EventType "swiss"]
[EventCountry "EST"]
[SourceTitle "playchess.com"]
[Source "ChessBase"]
[SourceQuality "1"]
[TimeControl "40/5400+30:900+30"]

1. c4 {[%emt 0:00:03]} e6 {[%emt 0:01:12]} 2. g3 {[%emt 0:00:14]} d5 {[%emt 0:00:07]} 3. Bg2 {[%emt 0:00:07]} Nf6 {[%emt 0:00:11]} 4. Nf3 {[%emt 0:00:08]} d4 {[%emt 0:05:34]} 5. O-O {[%emt 0:01:40]} c5 {[%emt 0:00:04]} 6. e3 {[%emt 0:00:15]} Nc6 {[%emt 0:00:04]} 7. exd4 {[%emt 0:00:12]} cxd4 {[%emt 0:00:07]} 8. d3 {[%emt 0:03:52]} Bd6 {[%emt 0:00:26]} 9. Re1 {[%emt 0:01:20]} O-O {[%emt 0:04:35]} 10. Na3 {[%emt 0:01:24]} e5 {[%emt 0:06:01]} 11. c5 {[%emt 0:02:59]} Bxc5 {[%emt 0:01:51]} 12. Nxe5 {[%emt 0:00:15]} Nxe5 {[%emt 0:00:05]} 13. Rxe5 {[%emt 0:00:07]} Bd6 {[%emt 0:03:53]} 14. Re1 {[%emt 0:07:59]} Bb4 {[%emt 0:18:29]} 15. Bd2 {[%emt 0:04:45]} Bg4 {[%emt 0:02:09]} 16. Qc1 {[%emt 0:01:08]} Rc8 {[%emt 0:03:23]} 17. Nc4 {[%emt 0:01:28]} Bxd2 {[%emt 0:01:10]} 18. Qxd2 {[%emt 0:00:08]} Rc7 {[%emt 0:50:09]} 19. Qb4 {[%emt 1:11:56]} Be6 {[%emt 0:00:30]} 1/2-1/2

[Event "56th Ilmar Raud Memorial 2022"]
[Site "Viljandi"]
[Date "2022.07.08"]
[Round "7.5"]
[White "Tobak, Mikhail"]
[Black "Miezis, Normunds"]
[Result "1/2-1/2"]
[ECO "B40"]
[WhiteElo "2307"]
[BlackElo "2446"]
[Annotator "RC"]
[PlyCount "116"]
[EventDate "2022.07.05"]
[EventType "swiss"]
[EventCountry "EST"]
[SourceTitle "playchess.com"]
[Source "ChessBase"]
[SourceQuality "1"]
[TimeControl "40/5400+30:900+30"]

1. e4 {[%emt 0:02:09]} c5 {[%emt 0:00:14]} 2. Nf3 {[%emt 0:00:07]} e6 {[%emt 0:00:10]} 3. d3 {[%emt 0:00:08]} d5 {[%emt 0:02:37]} 4. Qe2 {[%emt 0:01:42]} Nf6 {[%emt 0:02:22]} 5. g3 {[%emt 0:00:49]} Nc6 {[%emt 0:00:23]} 6. e5 {[%emt 0:01:14]} Nd7 {[%emt 0:00:25]} 7. Bg2 {[%emt 0:00:28]} Qc7 {[%emt 0:02:29]} 8. Bf4 {[%emt 0:00:28]} g6 {[%emt 0:07:54]} 9. O-O {[%emt 0:05:48]} Bg7 {[%emt 0:00:14]} 10. Re1 {[%emt 0:03:48]} a6 {[%emt 0:05:54]} 11. h4 {[%emt 0:02:46]} h6 {[%emt 0:00:42]} 12. c4 {[%emt 0:02:44]} dxc4 {[%emt 0:00:47]} 13. dxc4 {[%emt 0:00:07]} g5 {[%emt 0:00:50]} 14. hxg5 {[%emt 0:00:44]} hxg5 {[%emt 0:00:09]} 15. Bxg5 {[%emt 0:16:08]} Ndxe5 {[%emt 0:07:05]} 16. Nc3 {[%emt 0:02:58]} Nxf3+ {[%emt 0:02:05]} 17. Qxf3 {[%emt 0:00:54]} Nd4 {[%emt 0:00:10]} 18. Qd3 {[%emt 0:05:43]} Kf8 {[%emt 0:02:07]} 19. Rad1 {[%emt 0:06:31]} Bd7 {[%emt 0:01:19]} 20. Be7+ {[%emt 0:12:33]} Kg8 {[%emt 0:02:51]} 21. b4 {[%emt 0:02:14]} Bc6 {[%emt 0:07:07]} 22. Bxc5 {[%emt 0:02:50]} Bxg2 {[%emt 0:00:54]} 23. Kxg2 {[%emt 0:02:14]} Qc6+ {[%emt 0:05:58]} 24. Qe4 {[%emt 0:05:41]} Nc2 {[%emt 0:00:53]} 25. Re2 {[%emt 0:00:37]} Na3 {[%emt 0:00:13]} 26. Qxc6 {[%emt 0:01:44]} bxc6 {[%emt 0:00:14]} 27. Na4 {[%emt 0:06:49]} Nxc4 {[%emt 0:01:53]} 28. Re4 {[%emt 0:04:57]} Ne5 {[%emt 0:02:50]} 29. Nb6 {[%emt 0:02:08]} Re8 {[%emt 0:05:01]} 30. Nc4 {[%emt 0:01:11]} Nxc4 {[%emt 0:01:39]} 31. Rxc4 {[%emt 0:00:04]} Rh5 {[%emt 0:00:24]} 32. Rd6 {[%emt 0:01:36]} Rc8 {[%emt 0:00:15]} 33. Rd7 {[%emt 0:04:05]} Ra8 {[%emt 0:05:08]} 34. Rf4 {[%emt 0:01:37]} Rf5 {[%emt 0:01:34]} 35. Rxf5 {[%emt 0:00:35]} exf5 {[%emt 0:00:16]} 36. Rc7 {[%emt 0:01:08]} a5 {[%emt 0:00:29]} 37. a3 {[%emt 0:00:18]} Bb2 {[%emt 0:00:38]} 38. bxa5 {[%emt 0:01:03]} Rxa5 {[%emt 0:00:46]} 39. Rc8+ {[%emt 0:00:09]} Kh7 {[%emt 0:02:30]} 40. Rxc6 {[%emt 0:00:00]} Bxa3 {[%emt 0:00:00]} 41. Bxa3 {[%emt 0:00:55]} Rxa3 {[%emt 0:01:02]} 42. Rf6 {[%emt 0:00:05]} Kg7 {[%emt 0:00:12]} 43. Rxf5 {[%emt 0:00:05]} Kg6 {[%emt 0:00:37]} 44. g4 {[%emt 0:01:25]} Rb3 {[%emt 0:00:19]} 45. Ra5 {[%emt 0:00:27]} Rc3 {[%emt 0:00:25]} 46. Re5 {[%emt 0:01:40]} f6 {[%emt 0:01:27]} 47. Rd5 {[%emt 0:00:21]} Ra3 {[%emt 0:00:11]} 48. f4 {[%emt 0:00:42]} Rb3 {[%emt 0:00:26]} 49. Kf2 {[%emt 0:00:16]} Ra3 {[%emt 0:00:17]} 50. Rd7 {[%emt 0:00:13]} Rb3 {[%emt 0:00:35]} 51. Re7 {[%emt 0:00:57]} Ra3 {[%emt 0:00:51]} 52. Re3 {[%emt 0:00:07]} Ra1 {[%emt 0:00:45]} 53. Kf3 {[%emt 0:00:08]} Rf1+ {[%emt 0:00:27]} 54. Kg3 {[%emt 0:00:19]} Rg1+ {[%emt 0:00:08]} 55. Kh4 {[%emt 0:00:42]} f5 {[%emt 0:06:39]} 56. Re6+ {[%emt 0:00:34]} Kf7 {[%emt 0:00:08]} 57. gxf5 {[%emt 0:00:04]} Rg2 {[%emt 0:00:18]} 58. Kh5 {[%emt 0:00:40]} Rg1 {[%emt 0:00:24]} 1/2-1/2

[Event "56th Ilmar Raud Memorial 2022"]
[Site "Viljandi"]
[Date "2022.07.08"]
[Round "7.6"]
[White "Sirosh, Ilja"]
[Black "Sinitsina, Anastassia"]
[Result "1-0"]
[ECO "C77"]
[WhiteElo "2402"]
[BlackElo "2175"]
[Annotator "RC"]
[PlyCount "79"]
[EventDate "2022.07.05"]
[EventType "swiss"]
[EventCountry "EST"]
[SourceTitle "playchess.com"]
[Source "ChessBase"]
[SourceQuality "1"]
[TimeControl "40/5400+30:900+30"]

1. e4 {[%emt 0:00:03]} e5 {[%emt 0:00:25]} 2. Nf3 {[%emt 0:00:09]} Nc6 {[%emt 0:00:04]} 3. Bb5 {[%emt 0:00:07]} a6 {[%emt 0:00:08]} 4. Ba4 {[%emt 0:00:07]} Nf6 {[%emt 0:00:06]} 5. d3 {[%emt 0:00:06]} b5 {[%emt 0:00:13]} 6. Bb3 {[%emt 0:00:07]} Bc5 {[%emt 0:00:07]} 7. Bg5 {[%emt 0:00:08]} d6 {[%emt 0:03:12]} 8. c3 {[%emt 0:00:34]} h6 {[%emt 0:00:28]} 9. Bh4 {[%emt 0:00:07]} Qe7 {[%emt 0:06:50]} 10. Nbd2 {[%emt 0:09:22]} Bd7 {[%emt 0:07:55]} 11. O-O {[%emt 0:05:21]} g5 {[%emt 0:00:50]} 12. Bg3 {[%emt 0:00:16]} O-O {[%emt 0:02:03]} 13. Re1 {[%emt 0:06:00]} Bb6 {[%emt 0:07:30]} 14. d4 {[%emt 0:08:35]} Rae8 {[%emt 0:09:25]} 15. Nf1 {[%emt 0:20:15]} Qd8 {[%emt 0:01:58]} 16. dxe5 {[%emt 0:19:23]} Nxe5 {[%emt 0:02:09]} 17. Bxe5 {[%emt 0:05:40]} dxe5 {[%emt 0:00:50]} 18. Ng3 {[%emt 0:02:41]} Qe7 {[%emt 0:05:47]} 19. Qe2 {[%emt 0:03:30]} Qc5 {[%emt 0:03:58]} 20. Rad1 {[%emt 0:03:06]} Bc8 {[%emt 0:03:05]} 21. Rf1 {[%emt 0:04:44]} Rd8 {[%emt 0:02:51]} 22. h3 {[%emt 0:01:33]} a5 {[%emt 0:06:20]} 23. a3 {[%emt 0:06:10]} c6 {[%emt 0:00:55]} 24. Nh2 {[%emt 0:00:21]} Be6 {[%emt 0:01:26]} 25. Rxd8 {[%emt 0:01:03]} Bxd8 {[%emt 0:01:05]} 26. Bxe6 {[%emt 0:00:06]} fxe6 {[%emt 0:00:03]} 27. Nh5 {[%emt 0:01:37]} Ne8 {[%emt 0:16:05]} 28. Qd3 {[%emt 0:01:12]} Qd6 {[%emt 0:00:34]} 29. Rd1 {[%emt 0:00:33]} Be7 {[%emt 0:02:16]} 30. Ng4 {[%emt 0:00:12]} Kh7 {[%emt 0:00:11]} 31. Qxd6 {[%emt 0:00:13]} Nxd6 {[%emt 0:01:04]} 32. Nxe5 {[%emt 0:00:28]} Rc8 {[%emt 0:00:16]} 33. f3 {[%emt 0:01:17]} a4 {[%emt 0:00:35]} 34. Kf2 {[%emt 0:00:26]} Rc7 {[%emt 0:00:12]} 35. Ke2 {[%emt 0:00:11]} Nb7 {[%emt 0:00:21]} 36. Nxc6 {[%emt 0:00:34]} Kg6 {[%emt 0:01:29]} 37. g4 {[%emt 0:00:24]} Bc5 {[%emt 0:00:33]} 38. Ne5+ {[%emt 0:00:30]} Kh7 {[%emt 0:00:06]} 39. Nf6+ {[%emt 0:00:22]} Kh8 {[%emt 0:00:10]} 40. Ng6+ {[%emt 0:00:00]} 1-0

[Event "56th Ilmar Raud Memorial 2022"]
[Site "Viljandi"]
[Date "2022.07.09"]
[Round "8.1"]
[White "Laurusas, Tomas"]
[Black "Kanep, Meelis"]
[Result "1-0"]
[ECO "E62"]
[WhiteElo "2561"]
[BlackElo "2417"]
[Annotator "TA"]
[PlyCount "83"]
[EventDate "2022.07.05"]
[EventType "swiss"]
[EventCountry "EST"]
[SourceTitle "playchess.com"]
[Source "ChessBase"]
[SourceQuality "1"]
[TimeControl "40/5400+30:900+30"]

{[%evp 15,83,32,33,14,7,13,20,8,15,10,20,6,9,0,18,0,0,-8,18,-12,0,-7,0,0,61,66,62,58,71,77,68,64,74,90,111,53,64,51,79,78,110,109,113,65,146,79,198,191,195,193,191,181,189,188,221,202,404,390,907,907,1006,856,29970,29973,29973,29974,29974,29973,29957,5495]} 1. c4 {[%emt 0:00:03]} Nf6 {[%emt 0:00:49]} 2. Nc3 {[%emt 0:00:06]} g6 {[%emt 0:00:27]} 3. g3 {[%emt 0:00:22]} Bg7 {[%emt 0:00:23]} 4. Bg2 {[%emt 0:00:11]} O-O {[%emt 0:00:18]} 5. d4 {[%emt 0:00:46][%cal Bd2d4,Bd4d5][%mdl 32]} d6 {[%emt 0:00:16]} 6. Nf3 {[%emt 0:00:07][%cal Bg1f3,Bf3d2,Bd2b3][%mdl 32]} Nc6 {[%emt 0:00:18]} 7. O-O {[%emt 0:06:16]} e5 {[%emt 0:04:17]} 8. d5 {[%emt 0:01:51]} Nb8 {[%emt 0:00:20] is the new trend.} 9. c5 {[%emt 0:00:08] E62: King's Indian: Fianchetto: 6...c6 and Panno Variation (6...Nc6) without ...a6.} Na6 {[%emt 0:25:36]} 10. cxd6 {[%emt 0:00:53]} cxd6 {[%emt 0:00:12]} 11. Nd2 {[%emt 0:18:57] The position is equal.} Bd7 {[%emt 0:05:46]} 12. a4 {[%emt 0:01:19][%cal Ba2a4,Ba4a5][%mdl 32]} Rc8 {[%emt 0:15:30]} 13. Nb3 {[%emt 0:07:35]} Ne8 {[%emt 0:12:09]} 14. Be3 {[%emt 0:11:16]} Ra8 {[%emt 0:02:51] [#]} 15. Qd2 $5 $146 {[%emt 0:04:38][%mdl 8] An interesting novelty.} ({Predecessor:} 15. Nb5 b6 16. Nc3 f5 17. a5 b5 18. Qd3 Qb8 19. Rfc1 Nf6 20. h3 Rc8 21. Qd2 {0-1 (40) Kuzubov,Y (2643)-Onischuk,V (2633) Chess.com INT 2020}) 15... b6 {[%emt 0:03:20]} 16. a5 {[%emt 0:05:00]} Nc5 {[%emt 0:04:35]} 17. Nxc5 {[%emt 0:02:39]} bxc5 {[%emt 0:00:16]} 18. b4 $1 {[%emt 0:00:01]} cxb4 {[%emt 0:00:51]} 19. Na2 {[%emt 0:00:03]} a6 {[%emt 0:06:24]} ({But not} 19... Qxa5 20. Nxb4 Qc7 21. Rfc1 $16) (19... b3 $11 20. Nb4 e4) 20. Nxb4 {[%emt 0:00:40] Hoping for Nc6.} Bb5 {[%emt 0:00:15]} 21. Bb6 {[%emt 0:03:28]} Qd7 {[%emt 0:00:11]} 22. Rfc1 {[%emt 0:00:25]} f5 {[%emt 0:03:57]} 23. Bh3 {[%emt 0:01:08]} Qe7 {[%emt 0:03:18]} 24. Nc6 {[%emt 0:03:40]} Qf6 {[%emt 0:00:05]} 25. Na7 {[%emt 0:00:06] 0x0.0022fd529635dp-1022s more active pieces. The black rooks are badly placed.} (25. e4 $16) 25... Bd7 $1 $14 {[%emt 0:03:15]} 26. Qd3 {[%emt 0:02:35]} Qf7 {[%emt 0:00:36]} 27. Qxa6 {[%emt 0:01:23]} ({Inferior is} 27. Nc6 e4 28. Qa3 Bxa1 29. Rxa1 Rc8 $17) 27... Qxd5 {[%emt 0:00:51]} 28. Rd1 $36 {[%emt 0:00:18][%mdl 2048] White is on the roll.} Qe6 {[%emt 0:01:35]} 29. Rac1 {[%emt 0:15:52]} (29. e4 $16) 29... d5 {[%emt 0:00:52]} (29... Ba4 $1 $14) 30. Qd3 {[%emt 0:00:38]} (30. Bg2 $142 Nf6 31. Qb7) 30... Nf6 {[%emt 0:00:23] [#]} (30... d4 $16 {was necessary.}) 31. Nb5 $1 $18 {[%emt 0:00:04]} e4 {[%emt 0:04:12]} 32. Qb3 {[%emt 0:00:14] Black must now prevent Nc7.} Bxb5 {[%emt 0:00:06]} 33. Qxb5 {[%emt 0:00:01]} Qd7 {[%emt 0:01:24]} 34. Qb4 {[%emt 0:04:52]} ({Much less strong is} 34. Qxd7 Nxd7 35. Rxd5 Nxb6 36. axb6 Rab8 $16) 34... Rfc8 {[%emt 0:00:12]} 35. e3 {[%emt 0:00:15]} Rxc1 $2 {[%emt 0:00:54]} (35... Rcb8 {was worth a try.} 36. Bf1 Qe6) 36. Rxc1 {[%emt 0:00:05]} Ng4 $2 {[%emt 0:00:41]} (36... Qe6 37. Qb5 Ng4 38. Bxg4 fxg4) 37. Rc7 {[%emt 0:00:50]} Qe6 {[%emt 0:00:40]} 38. Bxg4 {[%emt 0:00:31][%cal Ob6d4] [#] aiming for Bd4!} fxg4 {[%emt 0:00:01]} 39. Bd4 {[%emt 0:00:46] White mates.} Be5 {[%emt 0:01:18]} 40. Qb7 {[%emt 0:00:00][%csl LRa8,LRh7]} Bxc7 {[%emt 0:00:00]} 41. Qxa8+ {[%emt 0:02:05]} Kf7 {[%emt 0:00:36]} 42. Qb7 {[%emt 0:00:05] Weighted Error Value: White=0.09 (flawless) /Black=0.45} (42. a6 $142 Qd7 43. Qh8 Qa4 44. Qf6+ Ke8 45. Qe6+ Kf8 46. Qc8+ Ke7 47. Qxc7+ Ke8 48. Qe5+ Kd7 49. Qxd5+ Kc7 50. Qf7+ Kd6 51. Qf4+ Kd7 52. Qxg4+ Kd6 53. Qf4+ Kd7 54. Qf7+ Kd6 55. Qf8+ Kd5 56. a7) 1-0

[Event "56th Ilmar Raud Memorial 2022"]
[Site "Viljandi"]
[Date "2022.07.09"]
[Round "8.2"]
[White "Kulaots, Kaido"]
[Black "Seeman, Tarvo"]
[Result "1/2-1/2"]
[ECO "B08"]
[WhiteElo "2543"]
[BlackElo "2410"]
[Annotator "TA"]
[PlyCount "117"]
[EventDate "2022.07.05"]
[EventType "swiss"]
[EventCountry "EST"]
[SourceTitle "playchess.com"]
[Source "ChessBase"]
[SourceQuality "1"]
[TimeControl "40/5400+30:900+30"]

{[%evp 14,117,54,38,42,41,40,39,47,40,45,52,49,43,49,49,58,71,56,60,65,56,60,48,56,53,65,66,66,70,74,73,74,70,75,63,80,68,68,61,61,56,58,69,107,129,130,70,75,56,56,9,72,18,28,28,28,25,20,37,162,161,153,152,155,162,155,153,153,151,223,220,230,195,206,220,356,310,436,425,450,426,435,420,365,175,151,185,170,121,120,117,165,0,0,0,114,-8,-8,-8,-8,-8,0,-24,0,0]} 1. e4 {[%emt 0:00:07]} g6 {[%emt 0:00:04]} 2. d4 {[%emt 0:00:17]} Bg7 {[%emt 0:00:05]} 3. Nf3 {[%emt 0:03:30]} d6 {[%emt 0:00:10]} 4. Be3 {[%emt 0:01:02]} Nf6 {[%emt 0:02:05]} 5. Nc3 {[%emt 0:03:31]} O-O {[%emt 0:01:02]} 6. Qd2 {[%emt 0:01:08]} Nc6 {[%emt 0:01:08]} 7. O-O-O {[%emt 0:14:55]} Bg4 {[%emt 0:05:05]} 8. Be2 {[%emt 0:03:16]} e5 {[%emt 0:20:20] B08: Pirc Defence: Classical System.} 9. dxe5 {[%emt 0:00:17]} dxe5 {[%emt 0:00:18]} 10. h3 {[%emt 0:00:30]} Bxf3 {[%emt 0:02:11] White is slightly better.} 11. Bxf3 {[%emt 0:00:11]} Qxd2+ {[%emt 0:24:04]} 12. Rxd2 {[%emt 0:00:47]} Rfd8 {[%emt 0:00:05]} 13. Rhd1 {[%emt 0:02:22][%cal Bh1d1,Bd1d2,Bd2d5][%mdl 32]} Rxd2 {[%emt 0:01:12]} 14. Rxd2 {[%emt 0:00:05]} a6 {[%emt 0:01:26]} 15. Nd5 {[%emt 0:04:17]} Nxd5 {[%emt 0:01:17]} 16. Rxd5 {[%emt 0:01:59] [#]} Rd8 $146 {[%emt 0:03:45]} ({Predecessor:} 16... Bf8 17. c4 Be7 18. a3 Rd8 19. Bg4 b6 20. Kd2 a5 21. Kc3 Rxd5 22. exd5 Nd4 {½-½ (35) Bartel,M-Voss,N DESC email 2005}) 17. c3 {[%emt 0:01:16]} Kf8 {[%emt 0:04:46]} 18. Kc2 {[%emt 0:03:12]} Ke8 {[%emt 0:02:47]} 19. b4 {[%emt 0:05:51]} Ne7 {[%emt 0:00:57]} 20. Rxd8+ {[%emt 0:10:55]} Kxd8 $14 {[%emt 0:00:04][%mdl 4096] Endgame KBB-KBN} 21. Kd3 {[%emt 0:00:09]} h5 {[%emt 0:08:45]} 22. Bd1 {[%emt 0:01:06]} Nc8 {[%emt 0:03:48]} 23. Bb3 {[%emt 0:01:53]} Ke7 {[%emt 0:02:06]} 24. h4 {[%emt 0:06:24]} Ke8 {[%emt 0:03:14]} 25. a4 {[%emt 0:04:23] White is more active.} Bf8 {[%emt 0:02:04]} 26. a5 {[%emt 0:01:07]} Nd6 {[%emt 0:03:49]} 27. f3 {[%emt 0:03:03]} Be7 {[%emt 0:01:24]} 28. Bf2 {[%emt 0:01:07]} f5 {[%emt 0:02:36]} 29. exf5 {[%emt 0:12:09]} gxf5 {[%emt 0:00:16] [#]} 30. f4 {[%emt 0:00:17]} (30. c4 $1 $16) 30... e4+ {[%emt 0:02:58]} 31. Kd2 {[%emt 0:02:23]} Bf6 $1 {[%emt 0:00:56]} 32. c4 {[%emt 0:04:26]} (32. Bd1 $14) 32... Kf8 {[%emt 0:00:52]} (32... Kd7 $11 {remains equal.}) 33. g3 {[%emt 0:00:29]} ({White should play} 33. c5 $16 Nb5 34. Be6) 33... c6 {[%emt 0:00:36]} 34. Bc5 {[%emt 0:04:34]} Ke7 {[%emt 0:00:06]} 35. Bd1 {[%emt 0:01:52]} Ke6 {[%emt 0:00:23]} 36. Be2 {[%emt 0:00:24]} Bb2 {[%emt 0:00:32]} (36... e3+ $1 $14 37. Kxe3 Ne4) 37. Kc2 $18 {[%emt 0:00:31]} ({Don't take} 37. Bxh5 $6 Nxc4+ 38. Kc2 Bh8 $14) 37... Bf6 {[%emt 0:00:13]} 38. Be3 {[%emt 0:00:34]} ({Don't do} 38. Bxh5 $6 Nxc4 39. Be2 Kd5 $14) 38... Bg7 {[%emt 0:01:01]} 39. Kb3 {[%emt 0:00:21]} Ne8 {[%emt 0:00:24]} 40. Bxh5 {[%emt 0:00:00]} Nf6 {[%emt 0:00:00]} 41. Be2 {[%emt 0:01:22]} Ng4 {[%emt 0:00:43]} (41... Bf8 $16 42. b5 c5) 42. Bc5 {[%emt 0:03:09]} Nh2 {[%emt 0:01:25]} 43. Kc2 {[%emt 0:01:47]} Kf7 {[%emt 0:02:06]} 44. h5 {[%emt 0:08:13]} Bf6 {[%emt 0:00:34]} (44... Kg8 $142 45. Bb6 Nf3) 45. Kd2 {[%emt 0:01:01]} Bb2 {[%emt 0:00:36]} (45... Kg7 {keeps fighting.} 46. Ke3 Kh7) 46. b5 {[%emt 0:00:45]} Kg7 {[%emt 0:00:30]} 47. bxa6 {[%emt 0:01:39]} bxa6 {[%emt 0:00:03]} 48. Bd6 {[%emt 0:02:51] Hoping for Be5+.} Kh6 {[%emt 0:01:02]} 49. Bf8+ {[%emt 0:00:23]} (49. c5 $142 {And now Bf8+ would win.} Nf3+ 50. Kd1) 49... Kh7 {[%emt 0:00:04]} 50. Kc2 {[%emt 0:01:44]} Bf6 {[%emt 0:00:22]} 51. Kb3 {[%emt 0:00:28]} (51. c5 $18 Bd8 52. Bxa6 Bxa5 53. h6) 51... Nf3 $16 {[%emt 0:00:17] [#] White must now prevent ...Nd4+.} 52. Bc5 {[%emt 0:00:49]} Kh6 {[%emt 0:02:56]} (52... Kg7 $16 {might work better.}) 53. Bf8+ {[%emt 0:00:11]} ({White should try} 53. Kb4 $18) 53... Kh7 {[%emt 0:00:55] aiming for ...Nd4+.} 54. Bc5 {[%emt 0:00:49]} Kh6 $1 {[%emt 0:00:03]} 55. Be3 {[%emt 0:00:26]} (55. Kb4 $16) 55... Bd4 $11 {[%emt 0:02:26]} 56. Bxf3 {[%emt 0:00:24]} ({Don't blunder} 56. Bc1 $2 c5 57. Bf1 Kxh5 $19) 56... Bxe3 {[%emt 0:00:05]} 57. Be2 {[%emt 0:00:08][%cal Oc4c5]} c5 {[%emt 0:01:27]} 58. g4 {[%emt 0:01:04]} fxg4 {[%emt 0:01:07]} 59. Bxg4 {[%emt 0:00:06] Black escapes into a draw.  Weighted Error Value: White=0.19 (very precise) /Black=0.14 (very precise)} 1/2-1/2